[Event "November 21 Early 2023"]
[Site "https://www.chess.com"]
[Date "2023.11.21"]
[Round "1"]
[White "Rychkov, Oleg"]
[Black "Bashirli, Saadat"]
[Result "1-0"]
[Board "85"]
[TimeControl "180+1"]
[WhiteFideId "4122852"]
[BlackFideId "13429990"]
[WhiteElo "2398"]
[BlackElo "1537"]
[WhiteTeam "RUS"]
[BlackTeam "AZE"]
[WhiteClock "0:00:14"]
[BlackClock "0:00:07"]

1. e4 {[%clk 0:03:00]}  e5 {[%clk 0:02:57]} 2. Bc4 {[%clk 0:02:59]}  Nf6 {[%clk 0:02:53]} 3. Nc3 {[%clk 0:02:59]}  Nc6 {[%clk 0:02:51]} 4. d3 {[%clk 0:02:59]}  Bc5 {[%clk 0:02:48]} 5. f4 {[%clk 0:02:58]}  exf4 {[%clk 0:02:45]} 6. Bxf4 {[%clk 0:02:57]}  d6 {[%clk 0:02:45]} 7. Nf3 {[%clk 0:02:52]}  h6 {[%clk 0:02:42]} 8. Na4 {[%clk 0:02:37]}  Bb6 {[%clk 0:02:38]} 9. Nxb6 {[%clk 0:02:36]}  axb6 {[%clk 0:02:39]} 10. a3 {[%clk 0:02:32]}  O-O {[%clk 0:02:35]} 11. O-O {[%clk 0:02:29]}  Be6 {[%clk 0:02:28]} 12. Bxe6 {[%clk 0:02:12]}  fxe6 {[%clk 0:02:27]} 13. Qd2 {[%clk 0:02:13]}  e5 {[%clk 0:02:23]} 14. Bg3 {[%clk 0:02:12]}  Nh5 {[%clk 0:02:13]} 15. Bf2 {[%clk 0:02:11]}  Nf4 {[%clk 0:02:11]} 16. Be3 {[%clk 0:02:11]}  g5 {[%clk 0:02:07]} 17. Kh1 {[%clk 0:02:01]}  Kh7 {[%clk 0:02:02]} 18. Rf2 {[%clk 0:01:56]}  Qd7 {[%clk 0:02:00]} 19. Raf1 {[%clk 0:01:54]}  Qg4 {[%clk 0:01:48]} 20. g3 {[%clk 0:01:44]}  Ne6 {[%clk 0:01:46]} 21. Qd1 {[%clk 0:01:38]}  Kg8 {[%clk 0:01:08]} 22. c3 {[%clk 0:01:36]}  Qh5 {[%clk 0:01:05]} 23. d4 {[%clk 0:01:14]}  exd4 {[%clk 0:01:02]} 24. cxd4 {[%clk 0:01:13]}  Ng7 {[%clk 0:00:55]} 25. Qb3+ {[%clk 0:01:10]}  Kh8 {[%clk 0:00:50]} 26. Qc4 {[%clk 0:01:03]}  Rae8 {[%clk 0:00:43]} 27. d5 {[%clk 0:00:55]}  Ne7 {[%clk 0:00:29]} 28. Bd4 {[%clk 0:00:52]}  Rc8 {[%clk 0:00:22]} 29. Qc3 {[%clk 0:00:49]}  Qg6 {[%clk 0:00:20]} 30. Kg1 {[%clk 0:00:37]}  c5 {[%clk 0:00:18]} 31. Nh4 {[%clk 0:00:33]}  gxh4 {[%clk 0:00:14]} 32. Rxf8+ {[%clk 0:00:32]}  Rxf8 {[%clk 0:00:14]} 33. Bxg7+ {[%clk 0:00:30]}  Qxg7 {[%clk 0:00:13]} 34. Rxf8+ {[%clk 0:00:30]}  Kh7 {[%clk 0:00:13]} 35. Qxg7+ {[%clk 0:00:27]}  Kxg7 {[%clk 0:00:14]} 36. Rb8 {[%clk 0:00:26]}  hxg3 {[%clk 0:00:13]} 37. hxg3 {[%clk 0:00:25]}  Kf6 {[%clk 0:00:13]} 38. Rxb7 {[%clk 0:00:25]}  Ng6 {[%clk 0:00:12]} 39. Rxb6 {[%clk 0:00:25]}  Ke5 {[%clk 0:00:13]} 40. a4 {[%clk 0:00:24]}  Kxe4 {[%clk 0:00:13]} 41. Rxd6 {[%clk 0:00:23]}  Ne5 {[%clk 0:00:13]} 42. Rxh6 {[%clk 0:00:22]}  Kxd5 {[%clk 0:00:12]} 43. a5 {[%clk 0:00:22]}  Nc4 {[%clk 0:00:10]} 44. a6 {[%clk 0:00:21]}  Nxb2 {[%clk 0:00:11]} 45. a7 {[%clk 0:00:21]}  c4 {[%clk 0:00:11]} 46. a8=Q+ {[%clk 0:00:20]}  Kd4 {[%clk 0:00:12]} 47. Rh4+ {[%clk 0:00:20]}  Kd3 {[%clk 0:00:12]} 48. Qf3+ {[%clk 0:00:20]}  Kc2 {[%clk 0:00:12]} 49. Rh2+ {[%clk 0:00:20]}  Kb1 {[%clk 0:00:11]} 50. Qc3 {[%clk 0:00:19]}  Nd1 {[%clk 0:00:08]} 51. Qc2+ {[%clk 0:00:19]}  Ka1 {[%clk 0:00:07]} 52. Qxd1# {[%clk 0:00:14]} 1-0

[Event "November 21 Early 2023"]
[Site "https://www.chess.com"]
[Date "2023.11.21"]
[Round "1"]
[White "Fier, Alexandr"]
[Black "Kuznetsova, Olga"]
[Result "1-0"]
[Board "89"]
[TimeControl "180+1"]
[WhiteFideId "2107139"]
[BlackFideId "4191323"]
[WhiteElo "2578"]
[BlackElo "2134"]
[WhiteTeam "BRA"]
[BlackTeam "RUS"]
[WhiteClock "0:02:08"]
[BlackClock "0:00:07"]

1. Nf3 {[%clk 0:03:00]}  Nf6 {[%clk 0:02:59]} 2. g3 {[%clk 0:03:01]}  e6 {[%clk 0:03:00]} 3. Bg2 {[%clk 0:03:02]}  d5 {[%clk 0:03:00]} 4. O-O {[%clk 0:03:03]}  Be7 {[%clk 0:03:01]} 5. d3 {[%clk 0:03:04]}  O-O {[%clk 0:03:01]} 6. Nbd2 {[%clk 0:03:05]}  b5 {[%clk 0:02:59]} 7. e4 {[%clk 0:03:05]}  Bb7 {[%clk 0:02:59]} 8. e5 {[%clk 0:03:05]}  Nfd7 {[%clk 0:03:00]} 9. Re1 {[%clk 0:03:05]}  c5 {[%clk 0:03:00]} 10. Nf1 {[%clk 0:03:05]}  Nc6 {[%clk 0:02:56]} 11. h4 {[%clk 0:03:06]}  Qc7 {[%clk 0:02:54]} 12. Bf4 {[%clk 0:03:06]}  Rfc8 {[%clk 0:02:47]} 13. h5 {[%clk 0:03:06]}  h6 {[%clk 0:02:46]} 14. Ne3 {[%clk 0:03:07]}  a5 {[%clk 0:02:43]} 15. Nxd5 {[%clk 0:03:07]}  exd5 {[%clk 0:02:38]} 16. e6 {[%clk 0:03:07]}  Bd6 {[%clk 0:02:37]} 17. exd7 {[%clk 0:03:08]}  Qxd7 {[%clk 0:02:37]} 18. Qd2 {[%clk 0:03:01]}  Bxf4 {[%clk 0:02:22]} 19. Qxf4 {[%clk 0:03:00]}  Re8 {[%clk 0:02:23]} 20. a4 {[%clk 0:02:54]}  bxa4 {[%clk 0:02:17]} 21. Qxa4 {[%clk 0:02:52]}  Qd6 {[%clk 0:02:05]} 22. d4 {[%clk 0:02:45]}  c4 {[%clk 0:02:00]} 23. c3 {[%clk 0:02:43]}  Rab8 {[%clk 0:01:48]} 24. Rxe8+ {[%clk 0:02:29]}  Rxe8 {[%clk 0:01:47]} 25. Qb5 {[%clk 0:02:30]}  Rb8 {[%clk 0:01:24]} 26. Nh4 {[%clk 0:02:29]}  Ne7 {[%clk 0:01:04]} 27. Qxa5 {[%clk 0:02:19]}  Ra8 {[%clk 0:01:02]} 28. Qxa8+ {[%clk 0:02:19]}  Bxa8 {[%clk 0:01:03]} 29. Rxa8+ {[%clk 0:02:20]}  Kh7 {[%clk 0:01:04]} 30. Rf8 {[%clk 0:02:19]}  Nf5 {[%clk 0:00:36]} 31. Rxf7 {[%clk 0:02:19]}  Nxh4 {[%clk 0:00:36]} 32. gxh4 {[%clk 0:02:20]}  Qe6 {[%clk 0:00:36]} 33. Rf4 {[%clk 0:02:20]}  Kg8 {[%clk 0:00:29]} 34. Kh2 {[%clk 0:02:21]}  Qd6 {[%clk 0:00:25]} 35. Kg3 {[%clk 0:02:21]}  Kh8 {[%clk 0:00:19]} 36. Bh3 {[%clk 0:02:21]}  Kg8 {[%clk 0:00:18]} 37. Bf5 {[%clk 0:02:21]}  Kh8 {[%clk 0:00:18]} 38. Kg4 {[%clk 0:02:22]}  Kg8 {[%clk 0:00:17]} 39. Bg6 {[%clk 0:02:22]}  Qd7+ {[%clk 0:00:15]} 40. Rf5 {[%clk 0:02:19]}  Qe6 {[%clk 0:00:14]} 41. Kg3 {[%clk 0:02:19]}  Qe1 {[%clk 0:00:13]} 42. Kh2 {[%clk 0:02:14]}  Qd2 {[%clk 0:00:07]} 43. Kg2 {[%clk 0:02:11]}  Qe2 {[%clk 0:00:06]} 44. Re5 {[%clk 0:02:08]}  Qg4+ {[%clk 0:00:06]} 45. Kf1 {[%clk 0:02:09]}  Qh3+ {[%clk 0:00:07]} 46. Ke1 {[%clk 0:02:09]}  Qg4 {[%clk 0:00:07]} 47. Re8# {[%clk 0:02:08]} 1-0

[Event "November 21 Early 2023"]
[Site "https://www.chess.com"]
[Date "2023.11.21"]
[Round "1"]
[White "Mazurkiewicz, Michal"]
[Black "Hulka, Valentyn"]
[Result "1-0"]
[Board "90"]
[TimeControl "180+1"]
[WhiteFideId "1124943"]
[BlackFideId "34107061"]
[WhiteElo "2124"]
[BlackElo "2163"]
[WhiteTeam "POL"]
[BlackTeam "UKR"]
[WhiteClock "0:00:05"]
[BlackClock "0:00:00"]

1. e4 {[%clk 0:02:59]}  c5 {[%clk 0:03:00]} 2. Nf3 {[%clk 0:02:59]}  Nc6 {[%clk 0:03:00]} 3. g3 {[%clk 0:03:00]}  Nf6 {[%clk 0:03:00]} 4. d3 {[%clk 0:03:00]}  d5 {[%clk 0:03:00]} 5. Nbd2 {[%clk 0:02:59]}  e5 {[%clk 0:02:58]} 6. Bg2 {[%clk 0:02:59]}  d4 {[%clk 0:02:59]} 7. Nc4 {[%clk 0:02:59]}  Qc7 {[%clk 0:02:55]} 8. a4 {[%clk 0:02:58]}  Be6 {[%clk 0:02:53]} 9. b3 {[%clk 0:02:55]}  Be7 {[%clk 0:02:53]} 10. O-O {[%clk 0:02:55]}  Nd7 {[%clk 0:02:53]} 11. Ng5 {[%clk 0:02:45]}  Bxg5 {[%clk 0:02:52]} 12. Bxg5 {[%clk 0:02:45]}  f6 {[%clk 0:02:52]} 13. Bd2 {[%clk 0:02:45]}  O-O-O {[%clk 0:02:52]} 14. a5 {[%clk 0:02:42]}  g5 {[%clk 0:02:49]} 15. f4 {[%clk 0:02:28]}  gxf4 {[%clk 0:02:43]} 16. gxf4 {[%clk 0:02:28]}  Rhg8 {[%clk 0:02:44]} 17. Kh1 {[%clk 0:02:23]}  Rg7 {[%clk 0:02:23]} 18. f5 {[%clk 0:02:23]}  Bf7 {[%clk 0:02:20]} 19. Bf3 {[%clk 0:02:23]}  Rgg8 {[%clk 0:01:49]} 20. Rg1 {[%clk 0:02:15]}  Ndb8 {[%clk 0:01:47]} 21. Qe1 {[%clk 0:02:00]}  Rxg1+ {[%clk 0:01:42]} 22. Qxg1 {[%clk 0:02:00]}  Rg8 {[%clk 0:01:43]} 23. Qf2 {[%clk 0:02:01]}  Qe7 {[%clk 0:01:38]} 24. Rg1 {[%clk 0:01:57]}  Rxg1+ {[%clk 0:01:12]} 25. Qxg1 {[%clk 0:01:58]}  Bxc4 {[%clk 0:01:12]} 26. bxc4 {[%clk 0:01:57]}  Qf7 {[%clk 0:01:09]} 27. h4 {[%clk 0:01:34]}  Nb4 {[%clk 0:00:45]} 28. h5 {[%clk 0:01:14]}  N8c6 {[%clk 0:00:16]} 29. Bd1 {[%clk 0:01:05]}  Kd7 {[%clk 0:00:16]} 30. h6 {[%clk 0:01:03]}  Nxa5 {[%clk 0:00:11]} 31. Qg7 {[%clk 0:01:01]}  Ke8 {[%clk 0:00:11]} 32. Qh8+ {[%clk 0:00:55]}  Ke7 {[%clk 0:00:12]} 33. Kh2 {[%clk 0:00:49]}  Nac6 {[%clk 0:00:10]} 34. Kh3 {[%clk 0:00:49]}  a5 {[%clk 0:00:10]} 35. Kh4 {[%clk 0:00:49]}  a4 {[%clk 0:00:10]} 36. Bh5 {[%clk 0:00:49]}  Qf8 {[%clk 0:00:08]} 37. Qxh7+ {[%clk 0:00:49]}  Kd6 {[%clk 0:00:08]} 38. Qxb7 {[%clk 0:00:35]}  a3 {[%clk 0:00:09]} 39. Bxb4 {[%clk 0:00:11]}  Nxb4 {[%clk 0:00:04]} 40. Qg7 {[%clk 0:00:09]}  Qxg7 {[%clk 0:00:02]} 41. hxg7 {[%clk 0:00:10]}  a2 {[%clk 0:00:03]} 42. g8=Q {[%clk 0:00:11]}  a1=Q {[%clk 0:00:04]} 43. Qd8+ {[%clk 0:00:11]}  Kc6 {[%clk 0:00:04]} 44. Be8+ {[%clk 0:00:12]}  Kb7 {[%clk 0:00:04]} 45. Qd7+ {[%clk 0:00:10]}  Kb8 {[%clk 0:00:04]} 46. Qb5+ {[%clk 0:00:10]}  Ka8 {[%clk 0:00:03]} 47. Bc6+ {[%clk 0:00:10]}  Nxc6 {[%clk 0:00:02]} 48. Qxc6+ {[%clk 0:00:11]}  Kb8 {[%clk 0:00:03]} 49. Qb6+ {[%clk 0:00:10]}  Ka8 {[%clk 0:00:03]} 50. Qd8+ {[%clk 0:00:10]}  Kb7 {[%clk 0:00:03]} 51. Qxf6 {[%clk 0:00:10]}  Qh1+ {[%clk 0:00:03]} 52. Kg5 {[%clk 0:00:11]}  Qg2+ {[%clk 0:00:04]} 53. Kh6 {[%clk 0:00:11]}  Qh2+ {[%clk 0:00:03]} 54. Kg7 {[%clk 0:00:11]}  Qxc2 {[%clk 0:00:04]} 55. Qxe5 {[%clk 0:00:10]}  Qxd3 {[%clk 0:00:05]} 56. Qd5+ {[%clk 0:00:11]}  Kb6 {[%clk 0:00:05]} 57. Qd6+ {[%clk 0:00:11]}  Kb7 {[%clk 0:00:05]} 58. Qd5+ {[%clk 0:00:11]}  Kb6 {[%clk 0:00:05]} 59. f6 {[%clk 0:00:10]}  Qg3+ {[%clk 0:00:06]} 60. Kf7 {[%clk 0:00:10]}  d3 {[%clk 0:00:06]} 61. Ke6 {[%clk 0:00:07]}  Qh3+ {[%clk 0:00:06]} 62. Ke7 {[%clk 0:00:06]}  Qh7+ {[%clk 0:00:02]} 63. f7 {[%clk 0:00:05]}  Qh4+ {[%clk 0:00:02]} 64. Ke8 {[%clk 0:00:05]}  Qh5 {[%clk 0:00:00]} 65. Qxh5 {[%clk 0:00:05]} 1-0

[Event "November 21 Early 2023"]
[Site "https://www.chess.com"]
[Date "2023.11.21"]
[Round "1"]
[White "Nazari, Arad"]
[Black "Kovalevsky, Stanislav"]
[Result "0-1"]
[Board "95"]
[TimeControl "180+1"]
[WhiteFideId "12577324"]
[BlackFideId "13508598"]
[WhiteElo "2100"]
[BlackElo "2092"]
[WhiteTeam "IRI"]
[BlackTeam "FID"]
[WhiteClock "0:00:00"]
[BlackClock "0:00:16"]

1. e4 {[%clk 0:02:25]}  c6 {[%clk 0:03:00]} 2. Nf3 {[%clk 0:02:25]}  d5 {[%clk 0:03:00]} 3. Nc3 {[%clk 0:02:25]}  Bg4 {[%clk 0:02:57]} 4. h3 {[%clk 0:02:25]}  Bxf3 {[%clk 0:02:51]} 5. Qxf3 {[%clk 0:02:26]}  d4 {[%clk 0:02:51]} 6. Nd1 {[%clk 0:02:08]}  e5 {[%clk 0:02:47]} 7. Qg3 {[%clk 0:01:43]}  Nf6 {[%clk 0:02:42]} 8. Qxe5+ {[%clk 0:01:35]}  Be7 {[%clk 0:02:41]} 9. Bd3 {[%clk 0:01:28]}  O-O {[%clk 0:02:37]} 10. O-O {[%clk 0:01:08]}  Bd6 {[%clk 0:02:19]} 11. Qf5 {[%clk 0:01:07]}  g6 {[%clk 0:02:12]} 12. Qf3 {[%clk 0:01:03]}  Nbd7 {[%clk 0:02:12]} 13. b3 {[%clk 0:01:01]}  Nh5 {[%clk 0:01:43]} 14. Nb2 {[%clk 0:00:46]}  Ne5 {[%clk 0:01:36]} 15. Qd1 {[%clk 0:00:46]}  Qg5 {[%clk 0:01:26]} 16. Kh1 {[%clk 0:00:26]}  Nf4 {[%clk 0:01:11]} 17. Rg1 {[%clk 0:00:23]}  Qh4 {[%clk 0:01:10]} 18. Bf1 {[%clk 0:00:19]}  Qxf2 {[%clk 0:00:55]} 19. d3 {[%clk 0:00:14]}  Nh5 {[%clk 0:00:40]} 20. Bg5 {[%clk 0:00:00]}  Qg3 {[%clk 0:00:16]} 0-1

[Event "November 21 Early 2023"]
[Site "https://www.chess.com"]
[Date "2023.11.21"]
[Round "1"]
[White "Zeman, Matyas"]
[Black "Csonka, Balazs"]
[Result "0-1"]
[Board "102"]
[TimeControl "180+1"]
[WhiteFideId "364398"]
[BlackFideId "742910"]
[WhiteElo "2286"]
[BlackElo "2399"]
[WhiteTeam "CZE"]
[BlackTeam "HUN"]
[WhiteClock "0:00:00"]
[BlackClock "0:00:08"]

1. e4 {[%clk 0:02:50]}  e6 {[%clk 0:03:00]} 2. d4 {[%clk 0:02:49]}  d5 {[%clk 0:03:00]} 3. Nc3 {[%clk 0:02:46]}  Bb4 {[%clk 0:02:56]} 4. exd5 {[%clk 0:02:45]}  exd5 {[%clk 0:02:54]} 5. Bd3 {[%clk 0:02:46]}  Nf6 {[%clk 0:02:51]} 6. Ne2 {[%clk 0:02:45]}  O-O {[%clk 0:02:48]} 7. O-O {[%clk 0:02:46]}  h6 {[%clk 0:02:45]} 8. h3 {[%clk 0:02:25]}  Re8 {[%clk 0:02:42]} 9. Ng3 {[%clk 0:02:25]}  c5 {[%clk 0:02:22]} 10. dxc5 {[%clk 0:02:22]}  Bxc5 {[%clk 0:02:23]} 11. Qf3 {[%clk 0:02:22]}  Nc6 {[%clk 0:02:21]} 12. Nh5 {[%clk 0:02:01]}  Nxh5 {[%clk 0:02:08]} 13. Qxh5 {[%clk 0:02:02]}  Re5 {[%clk 0:02:08]} 14. Qf3 {[%clk 0:01:58]}  Nd4 {[%clk 0:01:05]} 15. Qg3 {[%clk 0:01:58]}  Rh5 {[%clk 0:01:05]} 16. Be3 {[%clk 0:01:48]}  Qf6 {[%clk 0:00:48]} 17. Rad1 {[%clk 0:01:13]}  Bxh3 {[%clk 0:00:40]} 18. gxh3 {[%clk 0:00:30]}  Nf3+ {[%clk 0:00:40]} 19. Kh1 {[%clk 0:00:31]}  d4 {[%clk 0:00:29]} 20. Ne4 {[%clk 0:00:28]}  Qe6 {[%clk 0:00:21]} 21. Kg2 {[%clk 0:00:06]}  Nh4+ {[%clk 0:00:18]} 22. Kh1 {[%clk 0:00:07]}  Nf3 {[%clk 0:00:13]} 23. Kg2 {[%clk 0:00:07]}  Nh4+ {[%clk 0:00:13]} 24. Kh1 {[%clk 0:00:07]}  dxe3 {[%clk 0:00:09]} 25. fxe3 {[%clk 0:00:07]}  Ng6 {[%clk 0:00:07]} 26. Kg2 {[%clk 0:00:05]}  Be7 {[%clk 0:00:07]} 27. Rf3 {[%clk 0:00:03]}  Nh4+ {[%clk 0:00:07]} 28. Kh1 {[%clk 0:00:00]}  Nxf3 {[%clk 0:00:08]} 0-1

[Event "November 21 Early 2023"]
[Site "https://www.chess.com"]
[Date "2023.11.21"]
[Round "1"]
[White "Krzyzanowski, Marcin"]
[Black "Gutkin, Ilya"]
[Result "1-0"]
[Board "103"]
[TimeControl "180+1"]
[WhiteFideId "1132199"]
[BlackFideId "16203470"]
[WhiteElo "2471"]
[BlackElo "2248"]
[WhiteTeam "POL"]
[BlackTeam "GER"]
[WhiteClock "0:00:54"]
[BlackClock "0:00:00"]

1. Nf3 {[%clk 0:02:52]}  d5 {[%clk 0:03:00]} 2. g3 {[%clk 0:02:40]}  Nc6 {[%clk 0:02:59]} 3. Bg2 {[%clk 0:02:39]}  e5 {[%clk 0:02:59]} 4. O-O {[%clk 0:02:38]}  f5 {[%clk 0:02:57]} 5. c4 {[%clk 0:02:36]}  e4 {[%clk 0:02:49]} 6. Ne1 {[%clk 0:02:33]}  dxc4 {[%clk 0:02:49]} 7. d3 {[%clk 0:02:27]}  cxd3 {[%clk 0:02:48]} 8. exd3 {[%clk 0:02:28]}  Nf6 {[%clk 0:02:43]} 9. Nc3 {[%clk 0:02:20]}  Be6 {[%clk 0:02:35]} 10. Qa4 {[%clk 0:02:17]}  exd3 {[%clk 0:02:23]} 11. Nxd3 {[%clk 0:02:09]}  Qxd3 {[%clk 0:00:36]} 12. Bxc6+ {[%clk 0:02:08]}  bxc6 {[%clk 0:00:37]} 13. Qxc6+ {[%clk 0:02:08]}  Kf7 {[%clk 0:00:37]} 14. Qxa8 {[%clk 0:02:03]}  Bb4 {[%clk 0:00:37]} 15. Qc6 {[%clk 0:01:48]}  Bxc3 {[%clk 0:00:26]} 16. Qxc7+ {[%clk 0:01:47]}  Kg6 {[%clk 0:00:23]} 17. Qxc3 {[%clk 0:01:48]}  Qe4 {[%clk 0:00:19]} 18. Re1 {[%clk 0:01:45]}  Qd5 {[%clk 0:00:16]} 19. Be3 {[%clk 0:01:37]}  Rc8 {[%clk 0:00:15]} 20. Qd4 {[%clk 0:01:37]}  Qf3 {[%clk 0:00:15]} 21. Qf4 {[%clk 0:01:35]}  Qb7 {[%clk 0:00:13]} 22. Rac1 {[%clk 0:01:32]}  Rd8 {[%clk 0:00:10]} 23. Qg5+ {[%clk 0:01:31]}  Kf7 {[%clk 0:00:10]} 24. Bf4 {[%clk 0:01:19]}  Rd7 {[%clk 0:00:11]} 25. Be5 {[%clk 0:01:10]}  h6 {[%clk 0:00:10]} 26. Qh4 {[%clk 0:01:04]}  Ne4 {[%clk 0:00:10]} 27. Qh5+ {[%clk 0:01:01]}  Kg8 {[%clk 0:00:09]} 28. Qe8+ {[%clk 0:01:01]}  Kh7 {[%clk 0:00:08]} 29. Qxe6 {[%clk 0:01:01]}  Ng5 {[%clk 0:00:09]} 30. Qxf5+ {[%clk 0:01:00]}  g6 {[%clk 0:00:08]} 31. Qxd7+ {[%clk 0:00:56]}  Qxd7 {[%clk 0:00:07]} 32. Rc7 {[%clk 0:00:57]}  Nf3+ {[%clk 0:00:07]} 33. Kf1 {[%clk 0:00:55]}  Nxe5 {[%clk 0:00:00]} 34. Rxd7+ {[%clk 0:00:54]} 1-0

[Event "November 21 Early 2023"]
[Site "https://www.chess.com"]
[Date "2023.11.21"]
[Round "1"]
[White "Begmuratov, Alisher"]
[Black "hristos03"]
[Result "1-0"]
[Board "105"]
[TimeControl "180+1"]
[WhiteFideId "14203367"]
[WhiteElo "2387"]
[BlackElo "2414"]
[WhiteTeam "UZB"]
[WhiteClock "0:01:30"]
[BlackClock "0:00:00"]

1. e4 {[%clk 0:02:52]}  c5 {[%clk 0:02:57]} 2. Nf3 {[%clk 0:02:51]}  d6 {[%clk 0:02:58]} 3. Bb5+ {[%clk 0:02:50]}  Nd7 {[%clk 0:02:57]} 4. a4 {[%clk 0:02:48]}  Nf6 {[%clk 0:02:55]} 5. Nc3 {[%clk 0:02:48]}  g6 {[%clk 0:02:53]} 6. O-O {[%clk 0:02:48]}  a6 {[%clk 0:02:48]} 7. Be2 {[%clk 0:02:47]}  Bg7 {[%clk 0:02:48]} 8. d3 {[%clk 0:02:46]}  O-O {[%clk 0:02:48]} 9. a5 {[%clk 0:02:46]}  b5 {[%clk 0:02:45]} 10. axb6 {[%clk 0:02:45]}  a5 {[%clk 0:02:42]} 11. Nd2 {[%clk 0:02:36]}  Nxb6 {[%clk 0:02:33]} 12. Nc4 {[%clk 0:02:35]}  Nxc4 {[%clk 0:02:27]} 13. dxc4 {[%clk 0:02:36]}  Bb7 {[%clk 0:02:28]} 14. Bf3 {[%clk 0:02:29]}  Nd7 {[%clk 0:02:26]} 15. Ra3 {[%clk 0:02:27]}  Ne5 {[%clk 0:02:24]} 16. Be2 {[%clk 0:02:25]}  Qd7 {[%clk 0:02:03]} 17. Nd5 {[%clk 0:02:21]}  Ra6 {[%clk 0:01:49]} 18. f4 {[%clk 0:02:12]}  Nc6 {[%clk 0:01:48]} 19. f5 {[%clk 0:02:12]}  Nd4 {[%clk 0:01:36]} 20. f6 {[%clk 0:02:08]}  exf6 {[%clk 0:01:29]} 21. Nxf6+ {[%clk 0:02:09]}  Bxf6 {[%clk 0:01:29]} 22. Rxf6 {[%clk 0:02:10]}  Bxe4 {[%clk 0:01:20]} 23. Bh6 {[%clk 0:02:01]}  Re8 {[%clk 0:01:17]} 24. Bg4 {[%clk 0:01:54]}  Qe7 {[%clk 0:01:07]} 25. Bg5 {[%clk 0:01:50]}  Bxc2 {[%clk 0:01:04]} 26. Qd2 {[%clk 0:01:49]}  Qe1+ {[%clk 0:00:39]} 27. Qxe1 {[%clk 0:01:48]}  Rxe1+ {[%clk 0:00:40]} 28. Kf2 {[%clk 0:01:49]}  Re4 {[%clk 0:00:33]} 29. Bf3 {[%clk 0:01:41]}  Re6 {[%clk 0:00:26]} 30. Rf4 {[%clk 0:01:39]}  Kg7 {[%clk 0:00:19]} 31. Bd5 {[%clk 0:01:35]}  h6 {[%clk 0:00:15]} 32. Bxe6 {[%clk 0:01:31]}  Nxe6 {[%clk 0:00:14]} 33. Bf6+ {[%clk 0:01:31]}  Kh7 {[%clk 0:00:13]} 34. Rh4 {[%clk 0:01:31]}  Ra8 {[%clk 0:00:00]} 35. Rxh6+ {[%clk 0:01:30]} 1-0

[Event "November 21 Early 2023"]
[Site "https://www.chess.com"]
[Date "2023.11.21"]
[Round "1"]
[White "Topalov, Aleksandar"]
[Black "Komov, Roman"]
[Result "0-1"]
[Board "106"]
[TimeControl "180+1"]
[WhiteFideId "925659"]
[BlackFideId "24175714"]
[WhiteElo "2151"]
[BlackElo "2189"]
[WhiteTeam "SRB"]
[BlackTeam "RUS"]
[WhiteClock "0:01:35"]
[BlackClock "0:01:59"]

1. b3 {[%clk 0:03:00]}  d5 {[%clk 0:02:58]} 2. Bb2 {[%clk 0:03:00]}  c5 {[%clk 0:02:59]} 3. e3 {[%clk 0:03:00]}  a6 {[%clk 0:02:57]} 4. f4 {[%clk 0:02:57]}  Nc6 {[%clk 0:02:56]} 5. Nf3 {[%clk 0:02:57]}  Nf6 {[%clk 0:02:57]} 6. Be2 {[%clk 0:02:57]}  g6 {[%clk 0:02:57]} 7. O-O {[%clk 0:02:57]}  Bg7 {[%clk 0:02:57]} 8. Ne5 {[%clk 0:02:57]}  O-O {[%clk 0:02:55]} 9. Nxc6 {[%clk 0:02:57]}  bxc6 {[%clk 0:02:56]} 10. d3 {[%clk 0:02:50]}  d4 {[%clk 0:02:46]} 11. e4 {[%clk 0:02:48]}  e5 {[%clk 0:02:43]} 12. fxe5 {[%clk 0:02:47]}  Nd7 {[%clk 0:02:43]} 13. Ba3 {[%clk 0:02:29]}  Bxe5 {[%clk 0:02:34]} 14. Nd2 {[%clk 0:02:29]}  Bg7 {[%clk 0:02:26]} 15. Nc4 {[%clk 0:02:27]}  a5 {[%clk 0:02:23]} 16. Bc1 {[%clk 0:02:24]}  a4 {[%clk 0:02:22]} 17. Bf4 {[%clk 0:02:21]}  Ba6 {[%clk 0:02:22]} 18. Nd2 {[%clk 0:02:10]}  axb3 {[%clk 0:02:21]} 19. axb3 {[%clk 0:02:09]}  Ne5 {[%clk 0:02:11]} 20. Qe1 {[%clk 0:02:00]}  Bb5 {[%clk 0:02:07]} 21. Qg3 {[%clk 0:01:59]}  Re8 {[%clk 0:02:03]} 22. Nf3 {[%clk 0:01:57]}  Rxa1 {[%clk 0:01:58]} 23. Rxa1 {[%clk 0:01:35]}  Nd7 {[%clk 0:01:59]} 0-1

[Event "November 21 Early 2023"]
[Site "https://www.chess.com"]
[Date "2023.11.21"]
[Round "1"]
[White "De Silva, L M S T"]
[Black "Golubenko, Valentina"]
[Result "1-0"]
[Board "107"]
[TimeControl "180+1"]
[WhiteFideId "9953698"]
[BlackFideId "4501993"]
[WhiteElo "2372"]
[BlackElo "2126"]
[WhiteTeam "SRI"]
[BlackTeam "CRO"]
[WhiteClock "0:00:25"]
[BlackClock "0:00:06"]

1. Nf3 {[%clk 0:03:00]}  Nf6 {[%clk 0:02:41]} 2. e3 {[%clk 0:02:57]}  g6 {[%clk 0:02:41]} 3. b3 {[%clk 0:02:56]}  Bg7 {[%clk 0:02:41]} 4. Bb2 {[%clk 0:02:57]}  d5 {[%clk 0:02:40]} 5. d4 {[%clk 0:02:57]}  O-O {[%clk 0:02:28]} 6. Nbd2 {[%clk 0:02:56]}  c5 {[%clk 0:02:26]} 7. c4 {[%clk 0:02:53]}  cxd4 {[%clk 0:02:25]} 8. Nxd4 {[%clk 0:02:48]}  Nc6 {[%clk 0:02:23]} 9. Be2 {[%clk 0:02:48]}  Re8 {[%clk 0:02:20]} 10. cxd5 {[%clk 0:02:27]}  Nxd5 {[%clk 0:02:18]} 11. Nxc6 {[%clk 0:02:26]}  bxc6 {[%clk 0:02:18]} 12. Bxg7 {[%clk 0:02:27]}  Kxg7 {[%clk 0:02:18]} 13. Qc2 {[%clk 0:02:27]}  Bd7 {[%clk 0:02:10]} 14. O-O {[%clk 0:02:24]}  Rc8 {[%clk 0:02:05]} 15. Ne4 {[%clk 0:02:16]}  Bf5 {[%clk 0:02:01]} 16. Qb2+ {[%clk 0:02:16]}  Kg8 {[%clk 0:02:00]} 17. Nc5 {[%clk 0:02:15]}  Qb6 {[%clk 0:01:52]} 18. Rac1 {[%clk 0:02:12]}  Red8 {[%clk 0:01:46]} 19. e4 {[%clk 0:02:08]}  Nf4 {[%clk 0:01:32]} 20. exf5 {[%clk 0:02:06]}  Rd5 {[%clk 0:01:31]} 21. Na4 {[%clk 0:01:36]}  Qa5 {[%clk 0:01:21]} 22. Bc4 {[%clk 0:01:33]}  Rxf5 {[%clk 0:01:18]} 23. Nc3 {[%clk 0:01:18]}  Rg5 {[%clk 0:01:11]} 24. g3 {[%clk 0:01:17]}  Nh3+ {[%clk 0:01:08]} 25. Kh1 {[%clk 0:01:15]}  Qf5 {[%clk 0:01:07]} 26. f3 {[%clk 0:01:01]}  Rd8 {[%clk 0:00:55]} 27. Ne4 {[%clk 0:00:59]}  Qe5 {[%clk 0:00:35]} 28. Qg2 {[%clk 0:00:51]}  Rh5 {[%clk 0:00:27]} 29. f4 {[%clk 0:00:41]}  Qd4 {[%clk 0:00:23]} 30. Ng5 {[%clk 0:00:32]}  Nxg5 {[%clk 0:00:16]} 31. fxg5 {[%clk 0:00:33]}  e6 {[%clk 0:00:15]} 32. Qf3 {[%clk 0:00:29]}  Rxg5 {[%clk 0:00:12]} 33. Rcd1 {[%clk 0:00:25]}  Qb6 {[%clk 0:00:06]} 34. Qxf7+ {[%clk 0:00:25]} 1-0